[Event "33rd ECCC Open 2017"]
[Site "Antalya"]
[Date "2017.10.11"]
[Round "3"]
[White "Thorfinnsson, Bjorn"]
[Black "Jessel, Stephen"]
[Result "1/2-1/2"]
[ECO "A40"]
[WhiteElo "2398"]
[BlackElo "2334"]
[Annotator "ChessBase"]
[PlyCount "94"]
[EventType "team-tourn"]
[EventCountry "TUR"]
[WhiteTeam "Viking"]
[BlackTeam "Gonzaga"]
[TimeControl "40/5400+30:1800+30"]

1. d4 {[%emt 0:00:30]} e6 {[%emt 0:01:00]} 2. c4 {[%emt 0:00:30]} b6 {[%emt 0:00:30]} 3. e4 {[%emt 0:00:00]} Bb7 {[%emt 0:00:00]} 4. Bd3 {[%emt 0:00:00]} Bb4+ {[%emt 0:00:00]} 5. Nc3 {[%emt 0:00:30]} f5 {[%emt 0:01:30]} 6. Qh5+ {[%emt 0:00:00]} g6 {[%emt 0:00:30]} 7. Qh3 {[%emt 0:00:00]} fxe4 {[%emt 0:05:30]} 8. Bc2 {[%emt 0:00:00]} Qf6 {[%emt 0:26:30]} 9. Nge2 {[%emt 0:00:00]} Nc6 {[%emt 0:08:30]} 10. Bxe4 {[%emt 0:10:30]} O-O-O {[%emt 0:02:30]} 11. Qg4 {[%emt 0:15:30]} Qg7 {[%emt 0:13:30]} 12. Bd3 {[%emt 0:03:30]} Nf6 {[%emt 0:08:30]} 13. Qh3 {[%emt 0:01:30]} g5 {[%emt 0:13:54]} 14. Bd2 {[%emt 0:01:30]} g4 {[%emt 0:02:11]} 15. Qe3 {[%emt 0:01:30]} Ne7 {[%emt 0:08:06]} 16. O-O {[%emt 0:10:30]} Nf5 {[%emt 0:03:25]} 17. Bxf5 {[%emt 0:00:30]} exf5 {[%emt 0:00:00]} 18. Qf4 {[%emt 0:00:00]} Bd6 {[%emt 0:00:55]} 19. Qxf5 {[%emt 0:00:00]} Qg6 {[%emt 0:00:42]} 20. Ng3 {[%emt 0:01:30]} Bxg3 {[%emt 0:00:30]} 21. fxg3 {[%emt 0:00:30]} Qxf5 {[%emt 0:00:30]} 22. Rxf5 {[%emt 0:00:30]} Ne4 {[%emt 0:01:35]} 23. Nxe4 {[%emt 0:02:30]} Bxe4 {[%emt 0:00:30]} 24. Rf4 {[%emt 0:00:30]} Bd3 {[%emt 0:01:08]} 25. Rxg4 {[%emt 0:02:30]} Bxc4 {[%emt 0:00:14]} 26. Bf4 {[%emt 0:02:30]} Rhg8 {[%emt 0:00:45]} 27. Rh4 {[%emt 0:00:30]} Bd3 {[%emt 0:00:06]} 28. Rd1 {[%emt 0:01:30]} Bg6 {[%emt 0:01:01]} 29. g4 {[%emt 0:00:30]} d6 {[%emt 0:00:10]} 30. Kf2 {[%emt 0:00:30]} Rde8 {[%emt 0:00:20]} 31. Re1 {[%emt 0:01:30]} Rxe1 {[%emt 0:00:53]} 32. Kxe1 {[%emt 0:00:30]} Re8+ {[%emt 0:00:01]} 33. Kd2 {[%emt 0:01:30]} Re4 {[%emt 0:00:32]} 34. Be3 {[%emt 0:00:30]} c5 {[%emt 0:00:48]} 35. dxc5 {[%emt 0:00:30]} bxc5 {[%emt 0:00:22]} 36. h3 {[%emt 0:00:30]} Rc4 {[%emt 0:00:39]} 37. Ke1 {[%emt 0:04:30]} Rc2 {[%emt 0:00:34]} 38. Rh6 {[%emt 0:06:30]} d5 {[%emt 0:00:36]} 39. Bd2 {[%emt 0:02:30]} Rxb2 {[%emt 0:00:30]} 40. h4 {[%emt 0:00:00]} d4 {[%emt 0:01:03]} 41. h5 {[%emt 0:00:00]} Be4 {[%emt 0:05:30]} 42. g5 {[%emt 0:06:30]} c4 {[%emt 0:10:19]} 43. Re6 {[%emt 0:01:30]} Bd3 {[%emt 0:09:39]} 44. g6 {[%emt 0:35:43]} hxg6 {[%emt 0:00:45]} 45. hxg6 {[%emt 0:07:05]} c3 {[%emt 0:01:57]} 46. Bxc3 {[%emt 0:06:56]} Rxg2 {[%emt 0:04:00]} 47. Bxd4 {[%emt 0:00:07]} Rxg6 {[%emt 0:00:05]} 1/2-1/2